[Event "Early-Titled-Tuesday-Blitz-October-10-2023"]
[Site "Chess.com"]
[Date "2023.10.10"]
[Round "9"]
[White "Happy1712Drummer"]
[Black "Ishowmoves57"]
[Result "1-0"]
[WhiteElo "2360"]
[BlackElo "2172"]
[TimeControl "180+1"]
[EndTime "9:45:08 PDT"]
[Termination "Happy1712Drummer won by checkmate"]

1. e4 {[%clk 0:02:59.4]} 1... c5 {[%clk 0:02:54.4]} 2. Nf3 {[%clk 0:02:56]} 2...
Nc6 {[%clk 0:02:54.3]} 3. c3 {[%clk 0:02:49.1]} 3... d5 {[%clk 0:02:52.5]} 4.
exd5 {[%clk 0:02:49.3]} 4... Qxd5 {[%clk 0:02:53.4]} 5. d4 {[%clk 0:02:49.9]}
5... cxd4 {[%clk 0:02:53.6]} 6. cxd4 {[%clk 0:02:49.9]} 6... e6 {[%clk
0:02:51.1]} 7. Be2 {[%clk 0:02:46.5]} 7... Nf6 {[%clk 0:02:50.9]} 8. O-O {[%clk
0:02:45.9]} 8... Be7 {[%clk 0:02:49.9]} 9. Nc3 {[%clk 0:02:46]} 9... Qd8 {[%clk
0:02:49.5]} 10. Be3 {[%clk 0:02:37.8]} 10... O-O {[%clk 0:02:49.3]} 11. Ne5
{[%clk 0:02:35.8]} 11... Nxe5 {[%clk 0:02:42.3]} 12. dxe5 {[%clk 0:02:35.7]}
12... Nd7 {[%clk 0:02:41.8]} 13. Bf4 {[%clk 0:02:28.5]} 13... Nb6 {[%clk
0:02:38.4]} 14. Qb3 {[%clk 0:02:24.8]} 14... Bd7 {[%clk 0:02:35]} 15. Bf3 {[%clk
0:02:21.5]} 15... Bc6 {[%clk 0:02:29.2]} 16. Bxc6 {[%clk 0:02:15.5]} 16... bxc6
{[%clk 0:02:30.1]} 17. Rfd1 {[%clk 0:02:13.6]} 17... Nd5 {[%clk 0:02:29.8]} 18.
Bg3 {[%clk 0:02:06.8]} 18... Qb6 {[%clk 0:02:28.6]} 19. Qc2 {[%clk 0:01:54.4]}
19... Rab8 {[%clk 0:02:22.9]} 20. Rab1 {[%clk 0:01:53.7]} 20... Rfd8 {[%clk
0:02:20.5]} 21. a3 {[%clk 0:01:50.9]} 21... Qb3 {[%clk 0:02:11.9]} 22. Qxb3
{[%clk 0:01:24]} 22... Rxb3 {[%clk 0:02:09.9]} 23. Ne4 {[%clk 0:01:18]} 23...
Rdb8 {[%clk 0:01:51.2]} 24. Rbc1 {[%clk 0:01:14]} 24... c5 {[%clk 0:01:41.4]}
25. Nxc5 {[%clk 0:01:04.8]} 25... Bxc5 {[%clk 0:01:37.2]} 26. Rxc5 {[%clk
0:01:04.8]} 26... Rxb2 {[%clk 0:01:37.6]} 27. h4 {[%clk 0:00:57.4]} 27... h5
{[%clk 0:01:34.4]} 28. Rdc1 {[%clk 0:00:52]} 28... R2b3 {[%clk 0:01:27.7]} 29.
a4 {[%clk 0:00:49.4]} 29... R3b4 {[%clk 0:01:26.7]} 30. Ra5 {[%clk 0:00:45.6]}
30... Rb1 {[%clk 0:01:15.2]} 31. Rxb1 {[%clk 0:00:44]} 31... Rxb1+ {[%clk
0:01:16.1]} 32. Kh2 {[%clk 0:00:44.7]} 32... Rb7 {[%clk 0:01:16.5]} 33. f3
{[%clk 0:00:43.4]} 33... Nc3 {[%clk 0:01:12.2]} 34. Bf2 {[%clk 0:00:40.6]} 34...
Rb4 {[%clk 0:01:07.6]} 35. Be1 {[%clk 0:00:33.8]} 35... Rxa4 {[%clk 0:01:04.4]}
36. Bxc3 {[%clk 0:00:33.3]} 36... Rxh4+ {[%clk 0:00:47.2]} 37. Kg3 {[%clk
0:00:33.5]} 37... Rc4 {[%clk 0:00:47.8]} 38. Bd2 {[%clk 0:00:29]} 38... h4+
{[%clk 0:00:46.7]} 39. Kf2 {[%clk 0:00:28.2]} 39... Rc2 {[%clk 0:00:47]} 40. Ke3
{[%clk 0:00:28.6]} 40... g5 {[%clk 0:00:45.1]} 41. Rxa7 {[%clk 0:00:27.6]} 41...
Rc4 {[%clk 0:00:44.1]} 42. Kd3 {[%clk 0:00:25.8]} 42... Rc5 {[%clk 0:00:42.4]}
43. Bxg5 {[%clk 0:00:25.3]} 43... Rxe5 {[%clk 0:00:40.7]} 44. Bxh4 {[%clk
0:00:25.7]} 44... Rh5 {[%clk 0:00:40.6]} 45. g3 {[%clk 0:00:24.6]} 45... Rd5+
{[%clk 0:00:39.5]} 46. Ke4 {[%clk 0:00:24.5]} 46... Rb5 {[%clk 0:00:38.6]} 47.
Ra8+ {[%clk 0:00:20.8]} 47... Kg7 {[%clk 0:00:38.4]} 48. Rc8 {[%clk 0:00:19.7]}
48... Kg6 {[%clk 0:00:37.9]} 49. Rc4 {[%clk 0:00:19.5]} 49... f5+ {[%clk
0:00:36.3]} 50. Kf4 {[%clk 0:00:19.1]} 50... e5+ {[%clk 0:00:34.3]} 51. Ke3
{[%clk 0:00:19.6]} 51... Rb3+ {[%clk 0:00:34.6]} 52. Ke2 {[%clk 0:00:19.1]}
52... Rb2+ {[%clk 0:00:35.1]} 53. Kd3 {[%clk 0:00:19.6]} 53... Rb3+ {[%clk
0:00:35.5]} 54. Rc3 {[%clk 0:00:20.3]} 54... e4+ {[%clk 0:00:32.5]} 55. fxe4
{[%clk 0:00:16.5]} 55... fxe4+ {[%clk 0:00:33.4]} 56. Kc2 {[%clk 0:00:15.5]}
56... Rb4 {[%clk 0:00:27.6]} 57. Rc5 {[%clk 0:00:13.9]} 57... Rd4 {[%clk
0:00:24.2]} 58. Kc3 {[%clk 0:00:13.9]} 58... Rd3+ {[%clk 0:00:23.8]} 59. Kc4
{[%clk 0:00:14.5]} 59... Rf3 {[%clk 0:00:24.3]} 60. Re5 {[%clk 0:00:14.5]} 60...
e3 {[%clk 0:00:24.6]} 61. Kd3 {[%clk 0:00:14.9]} 61... e2+ {[%clk 0:00:22]} 62.
Kxe2 {[%clk 0:00:15.2]} 62... Rf5 {[%clk 0:00:22.5]} 63. Rxf5 {[%clk 0:00:14.8]}
63... Kxf5 {[%clk 0:00:22.9]} 64. Kf3 {[%clk 0:00:15.5]} 64... Kg6 {[%clk
0:00:23.1]} 65. g4 {[%clk 0:00:16.2]} 65... Kh6 {[%clk 0:00:23.2]} 66. Kf4
{[%clk 0:00:16.8]} 66... Kg6 {[%clk 0:00:24.1]} 67. Bd8 {[%clk 0:00:16.3]} 67...
Kh6 {[%clk 0:00:25]} 68. g5+ {[%clk 0:00:16.7]} 68... Kg6 {[%clk 0:00:25.9]} 69.
Kg4 {[%clk 0:00:17.2]} 69... Kh7 {[%clk 0:00:25.5]} 70. Kf5 {[%clk 0:00:17.8]}
70... Kh8 {[%clk 0:00:26]} 71. g6 {[%clk 0:00:17.6]} 71... Kg7 {[%clk
0:00:26.1]} 72. Ba5 {[%clk 0:00:17.7]} 72... Kg8 {[%clk 0:00:27]} 73. Be1 {[%clk
0:00:15.8]} 73... Kg7 {[%clk 0:00:27.9]} 74. Bf2 {[%clk 0:00:15.5]} 74... Kg8
{[%clk 0:00:28.8]} 75. Kf6 {[%clk 0:00:14.7]} 75... Kf8 {[%clk 0:00:27.2]} 76.
Bg1 {[%clk 0:00:15.1]} 76... Kg8 {[%clk 0:00:28.1]} 77. g7 {[%clk 0:00:15.4]}
77... Kh7 {[%clk 0:00:28]} 78. Kf7 {[%clk 0:00:16]} 78... Kh6 {[%clk 0:00:28]}
79. g8=Q {[%clk 0:00:16.5]} 79... Kh5 {[%clk 0:00:28.9]} 80. Qg3 {[%clk
0:00:16.7]} 80... Kh6 {[%clk 0:00:29.1]} 81. Qg6# {[%clk 0:00:17.4]} 1-0

[Event "Early-Titled-Tuesday-Blitz-October-10-2023"]
[Site "Chess.com"]
[Date "2023.10.10"]
[Round "9"]
[White "Sadykov_Ramil"]
[Black "boasovietica"]
[Result "1-0"]
[WhiteElo "2625"]
[BlackElo "2512"]
[TimeControl "180+1"]
[EndTime "9:45:20 PDT"]
[Termination "Sadykov_Ramil won on time"]

1. Nf3 {[%clk 0:03:00.9]} 1... d6 {[%clk 0:02:59.3]} 2. d4 {[%clk 0:02:58.6]}
2... Nf6 {[%clk 0:02:57.9]} 3. g3 {[%clk 0:02:56.4]} 3... g6 {[%clk 0:02:57.9]}
4. Bg2 {[%clk 0:02:56.6]} 4... Bg7 {[%clk 0:02:57.8]} 5. O-O {[%clk 0:02:57.2]}
5... O-O {[%clk 0:02:57.9]} 6. b3 {[%clk 0:02:51]} 6... c5 {[%clk 0:02:45]} 7.
Bb2 {[%clk 0:02:48.5]} 7... cxd4 {[%clk 0:02:41.2]} 8. Nxd4 {[%clk 0:02:48]}
8... a6 {[%clk 0:02:40.9]} 9. c4 {[%clk 0:02:45.9]} 9... Qc7 {[%clk 0:02:36.8]}
10. Nc3 {[%clk 0:02:45.5]} 10... Nc6 {[%clk 0:02:37.4]} 11. Rc1 {[%clk
0:02:41.3]} 11... Nxd4 {[%clk 0:02:37.1]} 12. Qxd4 {[%clk 0:02:41]} 12... Be6
{[%clk 0:02:33.6]} 13. Rfd1 {[%clk 0:02:26.8]} 13... Rfc8 {[%clk 0:02:27.1]} 14.
Qd2 {[%clk 0:02:05.5]} 14... Rab8 {[%clk 0:02:20.4]} 15. a4 {[%clk 0:02:04.9]}
15... Qb6 {[%clk 0:02:09.4]} 16. Qc2 {[%clk 0:02:02.7]} 16... Qb4 {[%clk
0:01:54.7]} 17. Nb1 {[%clk 0:01:22.7]} 17... b5 {[%clk 0:01:44.2]} 18. Bc3
{[%clk 0:01:14.5]} 18... Qc5 {[%clk 0:01:42]} 19. cxb5 {[%clk 0:01:13.9]} 19...
axb5 {[%clk 0:01:36.2]} 20. b4 {[%clk 0:01:13.4]} 20... Qa7 {[%clk 0:01:26.6]}
21. a5 {[%clk 0:00:59.6]} 21... Ng4 {[%clk 0:01:25.8]} 22. e3 {[%clk 0:00:57.9]}
22... Ne5 {[%clk 0:00:43.1]} 23. Qe2 {[%clk 0:00:46.6]} 23... Bc4 {[%clk
0:00:36.1]} 24. Qd2 {[%clk 0:00:46.5]} 24... Nd3 {[%clk 0:00:32.3]} 25. Rc2
{[%clk 0:00:39.4]} 25... Bb3 {[%clk 0:00:27.3]} 26. Qxd3 {[%clk 0:00:37.5]}
26... Bxc2 {[%clk 0:00:26.5]} 27. Qxc2 {[%clk 0:00:38.4]} 27... Bxc3 {[%clk
0:00:25.1]} 28. Nxc3 {[%clk 0:00:39.3]} 28... Qc7 {[%clk 0:00:23.5]} 29. Rd3
{[%clk 0:00:36.9]} 29... Qc4 {[%clk 0:00:23]} 30. a6 {[%clk 0:00:34.1]} 30...
Rc7 {[%clk 0:00:14.5]} 31. Bd5 {[%clk 0:00:25.6]} 31... Qxb4 {[%clk 0:00:12.2]}
32. Qa2 {[%clk 0:00:21.2]} 32... Ra7 {[%clk 0:00:10]} 33. Bxf7+ {[%clk
0:00:20.4]} 33... Kg7 {[%clk 0:00:08.9]} 34. Nd5 {[%clk 0:00:17.7]} 34... Qc4
{[%clk 0:00:06.7]} 35. Nf4 {[%clk 0:00:15.2]} 35... Qxa2 {[%clk 0:00:06.5]} 36.
Bxa2 {[%clk 0:00:16.1]} 36... e5 {[%clk 0:00:05.4]} 37. Ne6+ {[%clk 0:00:14.3]}
37... Kf6 {[%clk 0:00:05.2]} 38. Rxd6 {[%clk 0:00:15.2]} 38... Ke7 {[%clk
0:00:05.6]} 39. Rc6 {[%clk 0:00:13.6]} 39... Rba8 {[%clk 0:00:05.7]} 40. Nc7
{[%clk 0:00:11]} 40... Rc8 {[%clk 0:00:03.7]} 41. Nd5+ {[%clk 0:00:07.6]} 41...
Kd8 {[%clk 0:00:04.1]} 42. Rd6+ {[%clk 0:00:06]} 42... Ke8 {[%clk 0:00:04]} 43.
Re6+ {[%clk 0:00:05.9]} 43... Kf8 {[%clk 0:00:04.2]} 44. Nb4 {[%clk 0:00:04.5]}
44... Rc1+ {[%clk 0:00:03.2]} 45. Kg2 {[%clk 0:00:04.7]} 45... Ra1 {[%clk
0:00:02.5]} 46. Rxe5 {[%clk 0:00:04.7]} 46... Rxa6 {[%clk 0:00:01.8]} 47. Nxa6
{[%clk 0:00:04.6]} 47... Rxa2 {[%clk 0:00:02.5]} 48. Nc7 {[%clk 0:00:04]} 48...
b4 {[%clk 0:00:02.5]} 49. Rb5 {[%clk 0:00:04.6]} 49... Rb2 {[%clk 0:00:02.2]}
50. Ne6+ {[%clk 0:00:03.5]} 50... Ke7 {[%clk 0:00:02.2]} 51. Nd4 {[%clk
0:00:03.6]} 51... Rb1 {[%clk 0:00:02.1]} 52. h4 {[%clk 0:00:03.7]} 52... h6
{[%clk 0:00:02]} 53. Kf3 {[%clk 0:00:04]} 53... Kd6 {[%clk 0:00:02.4]} 54. Ke4
{[%clk 0:00:03.7]} 54... Rb2 {[%clk 0:00:02.5]} 55. f4 {[%clk 0:00:03.9]} 55...
Rg2 {[%clk 0:00:02.4]} 56. Rb6+ {[%clk 0:00:02.3]} 56... Ke7 {[%clk 0:00:02]}
57. Rxb4 {[%clk 0:00:02.6]} 57... Rxg3 {[%clk 0:00:02.2]} 58. Rb7+ {[%clk
0:00:03]} 58... Kf6 {[%clk 0:00:02.2]} 59. Rb6+ {[%clk 0:00:03.5]} 59... Kf7
{[%clk 0:00:02.7]} 60. Nf3 {[%clk 0:00:03.8]} 60... Rg2 {[%clk 0:00:02.3]} 61.
Ne5+ {[%clk 0:00:03.8]} 61... Kg7 {[%clk 0:00:01.4]} 62. Kd5 {[%clk 0:00:03.5]}
62... g5 {[%clk 0:00:01.4]} 63. hxg5 {[%clk 0:00:03.1]} 63... hxg5 {[%clk
0:00:01.9]} 64. f5 {[%clk 0:00:04]} 64... Rf2 {[%clk 0:00:01.5]} 65. f6+ {[%clk
0:00:04.1]} 65... Rxf6 {[%clk 0:00:01.2]} 66. Rxf6 {[%clk 0:00:03.8]} 66... Kxf6
{[%clk 0:00:02.1]} 67. Ke4 {[%clk 0:00:04.5]} 67... Ke6 {[%clk 0:00:01.1]} 68.
Ng4 {[%clk 0:00:04.8]} 1-0

[Event "Early-Titled-Tuesday-Blitz-October-10-2023"]
[Site "Chess.com"]
[Date "2023.10.10"]
[Round "9"]
[White "HeinichessPY"]
[Black "kingapolak"]
[Result "0-1"]
[WhiteElo "2202"]
[BlackElo "2057"]
[TimeControl "180+1"]
[EndTime "9:45:21 PDT"]
[Termination "kingapolak won on time"]

1. Nf3 {[%clk 0:03:00.4]} 1... Nf6 {[%clk 0:02:58.9]} 2. g3 {[%clk 0:03:00.1]}
2... g6 {[%clk 0:02:59]} 3. Bg2 {[%clk 0:03:00]} 3... Bg7 {[%clk 0:02:58.9]} 4.
O-O {[%clk 0:02:59.8]} 4... d6 {[%clk 0:02:58.3]} 5. c3 {[%clk 0:02:59.5]} 5...
e5 {[%clk 0:02:53.2]} 6. d3 {[%clk 0:02:59.3]} 6... O-O {[%clk 0:02:50.8]} 7.
Qa4 {[%clk 0:02:59]} 7... c6 {[%clk 0:02:46.2]} 8. Qh4 {[%clk 0:02:58.8]} 8...
Nbd7 {[%clk 0:02:06.4]} 9. Bh6 {[%clk 0:02:57.8]} 9... Re8 {[%clk 0:01:55.4]}
10. Ng5 {[%clk 0:02:52.6]} 10... Nf8 {[%clk 0:01:46.9]} 11. Nd2 {[%clk
0:02:48.5]} 11... Bxh6 {[%clk 0:01:31.1]} 12. Qxh6 {[%clk 0:02:45.3]} 12... Ng4
{[%clk 0:01:26.9]} 13. Qh4 {[%clk 0:02:40.5]} 13... h6 {[%clk 0:01:08]} 14. Ngf3
{[%clk 0:02:39.7]} 14... g5 {[%clk 0:00:38.4]} 15. Qh5 {[%clk 0:02:34.3]} 15...
Nh7 {[%clk 0:00:38.1]} 16. Ne4 {[%clk 0:02:16.5]} 16... d5 {[%clk 0:00:33.1]}
17. Ned2 {[%clk 0:01:59.8]} 17... Nhf6 {[%clk 0:00:32.7]} 18. Qh3 {[%clk
0:02:00.3]} 18... Kg7 {[%clk 0:00:17.4]} 19. Nh4 {[%clk 0:01:52.9]} 19... Ne3
{[%clk 0:00:13]} 20. fxe3 {[%clk 0:01:46.7]} 20... Bxh3 {[%clk 0:00:12.1]} 21.
Nf5+ {[%clk 0:01:47.6]} 21... Bxf5 {[%clk 0:00:11.7]} 22. Rxf5 {[%clk
0:01:48.5]} 22... Ng4 {[%clk 0:00:10]} 23. Raf1 {[%clk 0:01:46.2]} 23... Re7
{[%clk 0:00:09.9]} 24. R5f3 {[%clk 0:01:36.4]} 24... h5 {[%clk 0:00:08.9]} 25.
h3 {[%clk 0:01:36.9]} 25... Nh6 {[%clk 0:00:09.2]} 26. e4 {[%clk 0:01:37.4]}
26... Qd7 {[%clk 0:00:09]} 27. Kh2 {[%clk 0:01:31]} 27... g4 {[%clk 0:00:08.5]}
28. R3f2 {[%clk 0:01:29.2]} 28... gxh3 {[%clk 0:00:08.1]} 29. Bxh3 {[%clk
0:01:29.6]} 29... Ng4+ {[%clk 0:00:09]} 30. Bxg4 {[%clk 0:01:27.9]} 30... hxg4
{[%clk 0:00:09.9]} 31. Kg2 {[%clk 0:01:20.8]} 31... Rh8 {[%clk 0:00:09.9]} 32.
Rf5 {[%clk 0:01:21.3]} 32... Rh6 {[%clk 0:00:08.7]} 33. R1f2 {[%clk 0:01:19.3]}
33... Qe6 {[%clk 0:00:06.6]} 34. Nf1 {[%clk 0:01:19.5]} 34... dxe4 {[%clk
0:00:05.8]} 35. dxe4 {[%clk 0:01:19.2]} 35... Qxa2 {[%clk 0:00:06]} 36. Ne3
{[%clk 0:01:19.3]} 36... Rg6 {[%clk 0:00:05.5]} 37. Rh5 {[%clk 0:01:18.3]} 37...
Re8 {[%clk 0:00:01.7]} 38. Nf5+ {[%clk 0:01:18.7]} 38... Kf8 {[%clk 0:00:02.2]}
39. Rh8+ {[%clk 0:01:19.3]} 39... Rg8 {[%clk 0:00:02.7]} 40. Rh7 {[%clk
0:01:19.5]} 40... Qb3 {[%clk 0:00:02.3]} 41. Nd6 {[%clk 0:01:16.7]} 41... Re7
{[%clk 0:00:02.8]} 42. Rhxf7+ {[%clk 0:01:15.7]} 42... Rxf7 {[%clk 0:00:03.7]}
43. Rxf7+ {[%clk 0:01:16.2]} 43... Qxf7 {[%clk 0:00:04.4]} 44. Nxf7 {[%clk
0:01:15.6]} 44... Kxf7 {[%clk 0:00:05.3]} 45. Kf2 {[%clk 0:01:15.5]} 45... Ke6
{[%clk 0:00:06.2]} 46. Ke3 {[%clk 0:01:15.2]} 46... Kf6 {[%clk 0:00:07.1]} 47.
Kf2 {[%clk 0:01:14.9]} 47... Ke6 {[%clk 0:00:08]} 48. Ke3 {[%clk 0:01:15.2]}
48... Kd6 {[%clk 0:00:08.6]} 49. b4 {[%clk 0:01:15.4]} 49... c5 {[%clk
0:00:08.6]} 50. Kd3 {[%clk 0:01:16.3]} 50... b6 {[%clk 0:00:08.3]} 51. b5 {[%clk
0:01:16.4]} 51... Kc7 {[%clk 0:00:08.4]} 52. Kc4 {[%clk 0:01:17.3]} 52... Rd8
{[%clk 0:00:07.6]} 53. e3 {[%clk 0:01:16.6]} 53... Kb7 {[%clk 0:00:07.9]} 54.
Kb3 {[%clk 0:01:17.1]} 54... a6 {[%clk 0:00:08.3]} 55. Kc4 {[%clk 0:01:18]}
55... a5 {[%clk 0:00:08.6]} 56. Kb3 {[%clk 0:01:18]} 56... Ra8 {[%clk 0:00:08]}
57. Kc4 {[%clk 0:01:18.9]} 57... a4 {[%clk 0:00:08]} 58. Kd5 {[%clk 0:01:18]}
58... a3 {[%clk 0:00:08]} 59. Kxe5 {[%clk 0:01:18.9]} 59... a2 {[%clk
0:00:08.7]} 60. Kf4 {[%clk 0:01:17.4]} 60... a1=Q {[%clk 0:00:09.6]} 61. e5
{[%clk 0:01:17.9]} 61... Qxc3 {[%clk 0:00:10]} 62. Kxg4 {[%clk 0:01:18.8]} 62...
Re8 {[%clk 0:00:10]} 63. e6 {[%clk 0:01:19.4]} 63... Qe5 {[%clk 0:00:10.1]} 64.
Kf3 {[%clk 0:01:19.1]} 64... Qxe6 {[%clk 0:00:09.4]} 65. Kg2 {[%clk 0:01:20]}
65... Qxe3 {[%clk 0:00:09.6]} 0-1

[Event "Early-Titled-Tuesday-Blitz-October-10-2023"]
[Site "Chess.com"]
[Date "2023.10.10"]
[Round "9"]
[White "fu24"]
[Black "sokidze"]
[Result "1-0"]
[WhiteElo "2638"]
[BlackElo "2781"]
[TimeControl "180+1"]
[EndTime "9:45:22 PDT"]
[Termination "fu24 won on time"]

1. d4 {[%clk 0:03:00.9]} 1... d5 {[%clk 0:02:58.9]} 2. Bf4 {[%clk 0:02:59.8]}
2... Nf6 {[%clk 0:02:58.9]} 3. e3 {[%clk 0:02:59.4]} 3... c5 {[%clk 0:02:56.6]}
4. c3 {[%clk 0:02:59.5]} 4... Nc6 {[%clk 0:02:56.6]} 5. Nd2 {[%clk 0:03:00.1]}
5... cxd4 {[%clk 0:02:56.3]} 6. exd4 {[%clk 0:03:00.1]} 6... a6 {[%clk
0:02:56.9]} 7. Ngf3 {[%clk 0:03:00.4]} 7... Bf5 {[%clk 0:02:55.4]} 8. Nh4 {[%clk
0:02:57.2]} 8... Bg4 {[%clk 0:02:52.1]} 9. Qb3 {[%clk 0:02:53.9]} 9... Na5
{[%clk 0:02:50.5]} 10. Qc2 {[%clk 0:02:50.8]} 10... e6 {[%clk 0:02:47.5]} 11. h3
{[%clk 0:02:50.3]} 11... Bh5 {[%clk 0:02:45.3]} 12. g4 {[%clk 0:02:50.5]} 12...
Nd7 {[%clk 0:02:31.3]} 13. Bg3 {[%clk 0:02:42.4]} 13... Be7 {[%clk 0:02:30.9]}
14. Ndf3 {[%clk 0:02:33.3]} 14... Bg6 {[%clk 0:02:30.5]} 15. Nxg6 {[%clk
0:02:33]} 15... hxg6 {[%clk 0:02:31.4]} 16. Be2 {[%clk 0:02:28.8]} 16... Nf6
{[%clk 0:02:26.4]} 17. Ng5 {[%clk 0:02:03.8]} 17... Bd6 {[%clk 0:02:13.7]} 18.
Bxd6 {[%clk 0:01:36.1]} 18... Qxd6 {[%clk 0:02:14.6]} 19. Qd2 {[%clk 0:01:16]}
19... b5 {[%clk 0:02:11.4]} 20. h4 {[%clk 0:01:10.5]} 20... Nc4 {[%clk 0:02:06]}
21. Bxc4 {[%clk 0:01:09.7]} 21... bxc4 {[%clk 0:02:06.5]} 22. f3 {[%clk
0:01:05.8]} 22... Qg3+ {[%clk 0:01:50.9]} 23. Qf2 {[%clk 0:01:04.4]} 23... Qxf2+
{[%clk 0:01:27.7]} 24. Kxf2 {[%clk 0:01:05.3]} 24... Ke7 {[%clk 0:01:28]} 25.
Kg3 {[%clk 0:01:02.1]} 25... Rab8 {[%clk 0:01:16.7]} 26. Rab1 {[%clk 0:00:58.9]}
26... Ne8 {[%clk 0:01:14.4]} 27. b4 {[%clk 0:00:56.2]} 27... Nd6 {[%clk
0:01:12.9]} 28. a4 {[%clk 0:00:52.2]} 28... f6 {[%clk 0:01:07.2]} 29. Nh3 {[%clk
0:00:52.2]} 29... Kf7 {[%clk 0:01:07.3]} 30. Rbe1 {[%clk 0:00:50.8]} 30... Rbe8
{[%clk 0:00:54.9]} 31. Nf4 {[%clk 0:00:50.9]} 31... Nc8 {[%clk 0:00:48.8]} 32.
Re3 {[%clk 0:00:48.1]} 32... Nb6 {[%clk 0:00:38.3]} 33. a5 {[%clk 0:00:46]}
33... Na8 {[%clk 0:00:38.6]} 34. b5 {[%clk 0:00:27.4]} 34... g5 {[%clk
0:00:32.6]} 35. Ng2 {[%clk 0:00:22.4]} 35... gxh4+ {[%clk 0:00:32]} 36. Rxh4
{[%clk 0:00:18.4]} 36... Rxh4 {[%clk 0:00:32.4]} 37. Nxh4 {[%clk 0:00:17.6]}
37... axb5 {[%clk 0:00:29.6]} 38. f4 {[%clk 0:00:13.3]} 38... Nc7 {[%clk
0:00:28.3]} 39. Re1 {[%clk 0:00:13.9]} 39... Rb8 {[%clk 0:00:15.5]} 40. Rb1
{[%clk 0:00:12.2]} 40... Na6 {[%clk 0:00:14.4]} 41. Nf3 {[%clk 0:00:11.3]} 41...
b4 {[%clk 0:00:14.7]} 42. cxb4 {[%clk 0:00:10.2]} 42... Rxb4 {[%clk 0:00:15.4]}
43. Rxb4 {[%clk 0:00:08.5]} 43... Nxb4 {[%clk 0:00:16.3]} 44. Kf2 {[%clk
0:00:06.1]} 44... Ke7 {[%clk 0:00:11.5]} 45. Ke2 {[%clk 0:00:05.1]} 45... Kd6
{[%clk 0:00:11.2]} 46. f5 {[%clk 0:00:04.3]} 46... e5 {[%clk 0:00:08.3]} 47. Kd2
{[%clk 0:00:04.3]} 47... e4 {[%clk 0:00:08.4]} 48. Ng1 {[%clk 0:00:02.6]} 48...
Nc6 {[%clk 0:00:08.8]} 49. a6 {[%clk 0:00:02.4]} 49... Kc7 {[%clk 0:00:09.2]}
50. Ne2 {[%clk 0:00:03]} 50... Kb6 {[%clk 0:00:06]} 51. Kc3 {[%clk 0:00:03.6]}
51... Kxa6 {[%clk 0:00:06.1]} 52. Nf4 {[%clk 0:00:04.5]} 52... Ne7 {[%clk
0:00:05.5]} 53. Nh5 {[%clk 0:00:05.2]} 53... e3 {[%clk 0:00:02.4]} 54. Nxg7
{[%clk 0:00:05.9]} 54... Kb5 {[%clk 0:00:02.3]} 55. Nh5 {[%clk 0:00:05.9]} 55...
Nc6 {[%clk 0:00:01.4]} 56. Nxf6 {[%clk 0:00:05.7]} 56... e2 {[%clk 0:00:02]} 57.
Kd2 {[%clk 0:00:05.8]} 57... Nxd4 {[%clk 0:00:01.8]} 58. Nxd5 {[%clk 0:00:06.5]}
58... Kc5 {[%clk 0:00:01.5]} 59. Nc3 {[%clk 0:00:06.6]} 59... Nf3+ {[%clk
0:00:01.5]} 60. Kxe2 {[%clk 0:00:06.6]} 60... Ne5 {[%clk 0:00:02.4]} 61. g5
{[%clk 0:00:06.6]} 61... Kd4 {[%clk 0:00:03.1]} 62. Nd1 {[%clk 0:00:06.3]} 62...
Ke4 {[%clk 0:00:02.7]} 63. g6 {[%clk 0:00:05.4]} 63... Nd7 {[%clk 0:00:02]} 64.
Ne3 {[%clk 0:00:03.9]} 64... c3 {[%clk 0:00:02.4]} 65. g7 {[%clk 0:00:02.7]}
65... Nf6 {[%clk 0:00:02.4]} 66. Ng4 {[%clk 0:00:03.2]} 66... Ng8 {[%clk
0:00:02.2]} 67. f6 {[%clk 0:00:03.7]} 67... c2 {[%clk 0:00:02.3]} 68. Kd2 {[%clk
0:00:03.2]} 1-0